fUSD/lending_fUSD_20251027
["ID","MTS","AMOUNT","RATE_DAILY","PERIOD"]
[392522784,1761606485594,-259.23789932,0.00045,120]
[392522785,1761606485660,-2708.74435278,0.00045,120]
[392522786,1761606485724,-289.24465698,0.00045,120]
[392522787,1761606485789,-2393.66318484,0.00045,120]
[392522788,1761606485856,-476.82960453,0.00045,120]
[392522789,1761606485915,-151.57335051,0.00045,120]
[392522790,1761606485974,-544.2178465,0.00045,30]
[392522791,1761606486036,-1000000.0,0.00045,120]
[392522792,1761606486097,-605610.41952874,0.00045,120]
[392522793,1761606489814,-1029.8585,0.00044899,30]
[392522794,1761606489876,-500.0,0.00044999,120]
[392522795,1761606489942,-500.0,0.00044999,120]
[392522796,1761606490007,-394389.58047126,0.00045,120]
[392522797,1761606490069,-1000000.0,0.00045,120]
[392522798,1761606490132,-1000000.0,0.00045,120]
[392522799,1761606490198,-1000000.0,0.00045,120]
[392522800,1761606490257,-603580.56102874,0.00045,120]
[392522802,1761606494072,-174.00213316,0.000372,120]
[392522803,1761606494156,-1202.1,0.000384,30]
[392522804,1761606494237,-1202.1,0.000399,30]
[392522805,1761606494309,-1202.1,0.000414,30]
[392522806,1761606494380,-300.0,0.0004475,120]
[392522807,1761606494441,-1108.98520936,0.0004475,120]
[392522808,1761606494506,-396419.43897126,0.00045,120]
[392522809,1761606494568,-1000000.0,0.00045,120]
[392522810,1761606494627,-100000.0,0.00045,120]
[392522811,1761606494689,-1000000.0,0.00045,120]
[392522812,1761606494751,-1000000.0,0.00045,120]
[392522813,1761606494806,-498391.27368622,0.00045,120]
[392522815,1761606497330,-501608.72631378,0.00045,120]
[392522816,1761606497410,-304000.0,0.00045,120]
[392522817,1761606497465,-380.0,0.00045,120]
[392522818,1761606497541,-500.0,0.00045,120]
[392522819,1761606497619,-393000.0,0.00045,120]
[392522820,1761606497684,-97000.0,0.00045,120]
[392522821,1761606497757,-279000.0,0.00045,120]
[392522822,1761606497831,-1000000.0,0.00045,120]
[392522823,1761606497890,-1000000.0,0.00045,120]
[392522824,1761606497946,-424511.27368622,0.00045,120]
[392522825,1761606502440,-174.00213316,0.000372,120]
[392522826,1761606502558,-575488.72631378,0.00045,120]
[392522827,1761606502616,-1000000.0,0.00045,120]
[392522828,1761606502671,-1000000.0,0.00045,120]
[392522829,1761606502728,-1000000.0,0.00045,120]
[392522830,1761606502786,-500.0,0.00045,120]
[392522831,1761606502844,-1000.0,0.00045,120]
[392522832,1761606502900,-7111.0,0.00045,120]
[392522833,1761606502959,-354.0,0.00045,120]
[392522834,1761606503014,-1000.0,0.00045,120]
[392522835,1761606503073,-156.5,0.00045,85]
[392522836,1761606503132,-11590.00745047,0.00045,120]
[392522837,1761606503191,-152000.0,0.00045,120]
[392522838,1761606503247,-800.0,0.00045,30]
[392522839,1761606503311,-1053.0,0.00045,30]
[392522840,1761606503371,-578.19655565,0.00045,30]
[392522841,1761606503431,-300.0,0.00045,120]
[392522842,1761606503492,-500.0,0.00045,120]
[392522843,1761606503550,-150.0,0.00045,120]
[392522844,1761606503817,-1000000.0,0.00045,120]
[392522845,1761606503884,-1000000.0,0.00045,120]
[392522846,1761606503942,-150.0,0.00045,120]
[392522847,1761606503999,-1382.12026375,0.00045,120]
[392522848,1761606504058,-636.0,0.00045,30]
[392522849,1761606504119,-1092.0,0.00045,30]
[392522850,1761606504181,-999.0,0.00045205,120]
[392522851,1761606504242,-801847.02057939,0.0004525,120]
[392522852,1761606504308,-500.0,0.00045274,120]
[392522853,1761606504373,-500.0,0.00045428,60]
[392522854,1761606504436,-500.0,0.00045428,60]
[392522855,1761606504495,-500.0,0.00045428,60]
[392522856,1761606504555,-1053.0,0.0004545,30]
[392522857,1761606504617,-1000000.0,0.000455,120]
[392522858,1761606504676,-150.0,0.000455,120]
[392522859,1761606504736,-1000.38214633,0.000455,120]
[392522860,1761606504794,-1000000.0,0.000455,120]
[392522861,1761606504859,-1000000.0,0.000455,120]
[392522862,1761606504919,-1000000.0,0.000455,120]
[392522863,1761606504978,-1000000.0,0.000455,120]
[392522864,1761606505040,-1000000.0,0.000455,120]
[392522865,1761606505100,-500.0,0.00045548,120]
[392522866,1761606505155,-284.8759898,0.000457,120]
[392522867,1761606505212,-150.0,0.00045733,30]
[392522868,1761606505267,-243.01408843,0.00045733,30]
[392522869,1761606505321,-150.0,0.00045733,30]
[392522870,1761606505385,-1383.63926804,0.00045733,30]
[392522871,1761606505452,-150.0,0.00045733,30]
[392522872,1761606505510,-354.7797653,0.00045733,30]
[392522873,1761606505573,-1000000.0,0.0004575,120]
[392522874,1761606505633,-1000000.0,0.000458,120]
[392522875,1761606505696,-500.0,0.00045822,120]
[392522876,1761606505756,-186.33899509,0.000459,30]
[392522877,1761606505816,-1053.0,0.000459,30]
[392522878,1761606505877,-1000000.0,0.000459,120]
[392522879,1761606505937,-2177.13016537,0.00046,120]
[392522880,1761606505998,-901.42023687,0.00046,120]
[392522881,1761606506057,-150.0,0.00046,120]
[392522883,1761606506119,-176.13611846,0.00046,120]
[392522884,1761606506179,-184.38244145,0.00046,120]
[392522885,1761606506239,-1000.0,0.00046,30]
[392522886,1761606506298,-204.098044,0.00046,30]
[392522887,1761606506363,-822.55685539,0.00046,30]
[392522888,1761606506426,-1000000.0,0.00046,120]
[392522889,1761606506490,-1000000.0,0.00046,120]
[392522890,1761606506551,-1000000.0,0.00046,120]
[392522891,1761606506615,-1000000.0,0.00046,120]
[392522893,1761606506680,-1000.0,0.00046,120]
[392522894,1761606506744,-500.0,0.0004605,120]
[392522895,1761606506805,-500.0,0.00046096,120]
[392522896,1761606506870,-662.14247255,0.0004613,120]
[392522897,1761606506933,-158.0,0.000462,120]
[392522898,1761606506996,-871.49532062,0.000463,120]
[392522899,1761606507053,-1053.0,0.0004635,30]
[392522900,1761606507111,-500.0,0.0004637,120]
[392522901,1761606507169,-156.0,0.000464,120]
[392522902,1761606507226,-206.86707862,0.00046419,120]
[392522903,1761606507282,-150.0,0.000465,120]
[392522904,1761606507341,-1000000.0,0.000465,120]
[392522905,1761606507406,-1000000.0,0.000465,120]
[392522906,1761606507465,-1000000.0,0.000465,120]
[392522907,1761606507523,-500.0,0.00046524,60]
[392522908,1761606507584,-500.0,0.00046524,60]
[392522909,1761606507649,-500.0,0.00046524,60]
[392522910,1761606507711,-250.0,0.00046574,60]
[392522911,1761606507772,-1000.0,0.00046575,120]
[392522912,1761606507832,-1000.0,0.00046575,120]
[392522913,1761606507895,-1000.0,0.00046575,120]
[392522914,1761606507960,-1000.0,0.00046575,120]
[392522915,1761606508024,-1000.0,0.00046575,120]
[392522916,1761606508086,-598.51888293,0.00046575,120]
[392522917,1761606508146,-1243.96837339,0.000466,120]
[392522918,1761606508207,-500.0,0.00046644,120]
[392522919,1761606508263,-1292.85695335,0.000468,120]
[392522920,1761606508322,-1020.64788171,0.000469,120]
[392522921,1761606508386,-500.0,0.00046918,120]
[392522922,1761606508445,-444.0,0.00046996,120]
[392522923,1761606508504,-1000.0,0.00046999,120]
[392522924,1761606508571,-150.0,0.00047,120]
[392522925,1761606508647,-609.10627511,0.00047,30]
[392522926,1761606508719,-1000000.0,0.00047,120]
[392522927,1761606508781,-1000000.0,0.00047,120]
[392522928,1761606508843,-1000000.0,0.00047,120]
[392522931,1761606508906,-1000.0,0.00047,120]
[392522932,1761606508966,-20000.0,0.00047,120]
[392522933,1761606509029,-7111.0,0.00047,120]
[392522934,1761606509088,-500.0,0.0004716,120]
[392522935,1761606509148,-500.0,0.00047192,120]
[392522936,1761606509210,-1092.0,0.0004725,30]
[392522937,1761606509272,-150.0,0.000475,120]
[392522938,1761606509333,-642.4007722,0.000475,120]
[392522939,1761606509397,-1000000.0,0.000475,120]
[392522940,1761606509462,-1000000.0,0.000475,120]
[392522941,1761606509521,-500.0,0.0004762,60]
[392522942,1761606509582,-80000.0,0.0004785,120]
[392522943,1761606509643,-2177.13016537,0.00048,120]
[392522944,1761606509703,-901.42023687,0.00048,120]
[392522945,1761606509767,-1000000.0,0.00048,120]
[392522946,1761606509830,-1000000.0,0.00048,120]
[392522947,1761606509890,-900000.0,0.00048,120]
[392522948,1761606509952,-150.0,0.00048,120]
[392522949,1761606510014,-2890.56771666,0.00048,120]
[392522950,1761606510079,-2510.5567814,0.00048,120]
[392522951,1761606510321,-362.94846941,0.00048,120]
[392522952,1761606510383,-280.0,0.00048,120]
[392522953,1761606510448,-1000000.0,0.00048,120]
[392522954,1761606510510,-1000000.0,0.00048,120]
[392522955,1761606510569,-1000.0,0.00048,120]
[392522956,1761606510633,-20000.0,0.00048,120]
[392522957,1761606510696,-501.97986512,0.00048,120]
[392522958,1761606510755,-208.47,0.00048,120]
[392522959,1761606510989,150.423,0.00045,30]
[392522960,1761606511267,640.48464731,0.000371,120]
[392522961,1761606511352,640.48464731,0.00039325,120]
[392522962,1761606511541,9123.72637373,0.00037135,31]
[392522964,1761606515303,151.0,0.00037151,30]
[392522965,1761606515641,151.0,0.00037151,30]
[392522966,1761606515927,151.0,0.00037151,30]
[392522967,1761606516232,151.0,0.00041,30]
[392522968,1761606516534,151.0,0.00045,30]
[392522969,1761606516813,151.0,0.00037151,30]
[392522970,1761606517139,151.0,0.00037151,30]
[392522971,1761606517460,154.099196,0.00037151,30]
[392522972,1761606520400,834.73564979,0.00048219,30]
[392522974,1761606537566,335.97867941,0.000149,2]
[392522976,1761606538569,-500.0,0.00048269,120]
[392522977,1761606538633,-158.0,0.000484,120]
[392522978,1761606538697,-191.96864069,0.00048473,120]
[392522979,1761606538755,-860.96184428,0.000485,120]
[392522980,1761606538813,-202.25738998,0.000485,120]
[392522981,1761606538874,-1000000.0,0.000485,120]
[392522982,1761606538935,-1000000.0,0.000485,120]
[392522983,1761606538997,-80000.0,0.000485,120]
[392522984,1761606539057,-229.99954522,0.00048621,53]
[392522985,1761606539115,-156.0,0.000487,120]
[392522986,1761606539176,-500.0,0.00048716,60]
[392522987,1761606539236,-444.19364437,0.000488,120]
[392522988,1761606539295,-910.32040429,0.000488,120]
[392522989,1761606539356,-172.56966938,0.000488,120]
[392522990,1761606539417,-690.88463596,0.0004888,120]
[392522991,1761606539478,-181.87208177,0.000489,120]
[392522992,1761606539537,-1226.06136794,0.000489,120]
[392522993,1761606539593,-444.0,0.00048996,120]
[392522994,1761606539651,-1000.0,0.00048999,120]
[392522995,1761606539708,-150.0,0.00049,120]
[392522996,1761606539764,-176.37329544,0.00049,120]
[392522997,1761606539819,-784.68324268,0.00049,30]
[392522998,1761606539875,-1000000.0,0.00049,120]
[392522999,1761606539928,-3000.0,0.00049,120]
[392523000,1761606539980,-100790.39529716,0.00049,120]
[392523001,1761606540035,-1000.0,0.00049,120]
[392523002,1761606540091,-7111.0,0.00049,120]
[392523003,1761606540149,-155.57338359,0.00049,120]
[392523004,1761606540209,-163.6092921,0.00049,120]
[392523005,1761606540267,-720.69,0.00049027,120]
[392523006,1761606540326,-300.0,0.00049315,30]
[392523007,1761606540390,-600.0,0.00049315,32]
[392523008,1761606540451,-600.0,0.00049315,32]
[392523009,1761606540509,-151.0,0.00049315,120]
[392523010,1761606540565,-151.0,0.00049315,120]
[392523011,1761606540622,-151.0,0.00049315,120]
[392523012,1761606540678,-151.0,0.00049315,120]
[392523013,1761606540737,-151.0,0.00049315,120]
[392523014,1761606540795,-151.0,0.00049315,120]
[392523015,1761606540854,-167.892346,0.00049315,120]
[392523016,1761606540921,-500.0,0.00049378,120]
[392523017,1761606541001,-2000.0,0.0004939,58]
[392523018,1761606541063,-2000.0,0.0004944,63]
[392523020,1761606541146,-1000.0,0.00049443,30]
[392523021,1761606541228,-1000.0,0.00049443,30]
[392523022,1761606541297,-363.65578965,0.000495,120]
[392523023,1761606541371,-1000000.0,0.000495,120]
[392523024,1761606541433,-241.58207367,0.000495,120]
[392523025,1761606541515,-2000.0,0.0004955,61]
[392523026,1761606541583,-1092.0,0.00049613,30]
[392523027,1761606541648,-250.0,0.00049749,56]
[392523028,1761606541713,-1000.0,0.00049781,120]
[392523029,1761606541776,-500.0,0.00049812,60]
[392523030,1761606541839,-1000.0,0.00049854,30]
[392523031,1761606541903,-1000.0,0.00049854,30]
[392523032,1761606541967,-250.0,0.00049859,59]
[392523033,1761606542029,-2000.0,0.0004986,55]
[392523034,1761606542090,-7607.10504902,0.000499,120]
[392523035,1761606542149,-1406.0,0.000499,60]
[392523036,1761606542208,-1000.0,0.00049999,120]
[392523037,1761606542268,-250.0,0.00049999,44]
[392523038,1761606542330,-250.0,0.00049999,60]
[392523039,1761606542391,-1000.0,0.0005,90]
[392523040,1761606542452,-300.0,0.0005,120]
[392523041,1761606542513,-100000.0,0.0005,30]
[392523042,1761606542574,-307.60447995,0.0005,120]
[392523043,1761606542636,-2194.39516652,0.0005,120]
[392523044,1761606542704,-500.0,0.0005,120]
[392523045,1761606542765,-282.20775894,0.0005,120]
[392523046,1761606542824,-919.09099983,0.0005,120]
[392523047,1761606542881,-1345.91534849,0.0005,120]
[392523048,1761606542940,-1191.74581245,0.0005,120]
[392523049,1761606542998,-1079.72128265,0.0005,120]
[392523050,1761606543058,-224.93958955,0.0005,120]
[392523051,1761606543115,-165.00461466,0.0005,120]
[392523052,1761606543183,-500.0,0.0005,30]
[392523053,1761606543246,-2133.27737795,0.0005,120]
[392523054,1761606543307,-368.0,0.0005,120]
[392523055,1761606543371,-1000.0,0.0005,120]
[392523056,1761606543436,-1000000.0,0.0005,120]
[392523057,1761606543502,-2500.0,0.0005,120]
[392523058,1761606543565,-1000.0,0.0005,120]
[392523059,1761606543630,-200.0,0.0005,120]
[392523060,1761606543696,-10256.0,0.0005,60]
[392523061,1761606543757,-1000.0,0.0005,120]
[392523062,1761606543818,-483.0,0.0005,120]
[392523063,1761606543880,-30000.0,0.0005,120]
[392523064,1761606543944,-475.92011651,0.0005,120]
[392523065,1761606544005,-150.0,0.0005,120]
[392523066,1761606544068,-150.0,0.0005,120]
[392523067,1761606544129,-250.0,0.00050059,34]
[392523068,1761606544193,-1000.0,0.00050265,30]
[392523069,1761606544257,-1000.0,0.00050265,30]
[392523070,1761606544317,-260.838949,0.00050488,120]
[392523071,1761606544384,-671.44,0.000505,90]
[392523072,1761606544684,-158.0,0.000506,120]
[392523073,1761606544755,-1000.0,0.00050676,30]
[392523074,1761606544816,-1000.0,0.00050676,30]
[392523075,1761606544877,-493052.01,0.0005069,120]
[392523076,1761606544942,-500.0,0.00050908,60]
[392523077,1761606545006,-279.51166957,0.00050959,120]
[392523081,1761606547824,-307.0,0.00014999,2]
[392523085,1761606567714,-193.0,0.00014999,2]
[392523088,1761606602480,1000.0,0.0002,7]
[392523090,1761606613123,1068.77454671,0.0001499,2]
[392523091,1761606613192,1068.77454671,0.0001499,2]
[392523100,1761606631878,-500.0,0.00014999,2]
[392523101,1761606631887,-457.43890856,0.00014999,2]
[392523102,1761606631896,-155.0,0.00014999,2]
[392523103,1761606631907,-500.0,0.00014999,2]
[392523104,1761606631918,-279.70220422,0.00015,2]
[392523105,1761606631934,-63819.07126537,0.00015,2]
[392523106,1761606631946,-40280.42238691,0.00015,2]
[392523107,1761606631957,-666.0,0.00015,2]
[392523108,1761606631968,-2774.295589,0.00015,2]
[392523273,1761606637858,-0.01127375,0.00015,2]
[392523274,1761606637869,-297.33904197,0.00015,2]
[392523275,1761606637880,-1102.60451439,0.00015,2]
[392523276,1761606637898,-32020.21421943,0.00015,2]
[392523279,1761606639835,-9504.00000064,0.00015,2]
[392523281,1761606640908,-45.00000032,0.00015,2]
[392523283,1761606642683,-478.884,0.00015,2]
[392523462,1761606647662,-3490299.8435554,0.00015,2]
[392523463,1761606647674,-4663.8366346,0.00015,2]
[392523464,1761606647684,-15168.4810207,0.00015,2]
[392523465,1761606647698,-160.0,0.00015,2]
[392523466,1761606647708,-918.26,0.00015364,2]
[392523467,1761606647719,-500.0,0.00015633,2]
[392523468,1761606647728,-501.28256692,0.00015633,2]
[392523469,1761606647739,-500.0,0.00015633,2]
[392523470,1761606647750,-177.34943631,0.00015633,2]
[392523471,1761606647761,-575.63777896,0.00015633,2]
[392523472,1761606647773,-521.42621308,0.00015633,2]
[392523473,1761606647784,-284.93751373,0.00015633,2]
[392523474,1761606647795,-918.26,0.00015876,2]
[392523475,1761606647805,-35826.2456876,0.00016025,2]
[392523476,1761606647814,-222.39143095,0.00016137,2]
[392523477,1761606647824,-300.14500392,0.00016137,2]
[392523478,1761606647833,-500.0,0.00016137,2]
[392523479,1761606647846,-525.99245398,0.00016137,2]
[392523480,1761606647856,-500.0,0.0001629,2]
[392523481,1761606647865,-173.19086996,0.0001629,2]
[392523482,1761606647875,-500.0,0.0001629,2]
[392523483,1761606647885,-500.0,0.0001629,2]
[392523484,1761606647895,-500.0,0.0001629,2]
[392523485,1761606647906,-500.0,0.0001629,2]
[392523486,1761606647918,-200.0,0.0001634,2]
[392523487,1761606647928,-918.26,0.00016389,2]
[392523488,1761606647938,-226.0,0.000164,2]
[392523489,1761606647947,-317.0,0.000164,2]
[392523490,1761606647958,-500.0,0.00016438,2]
[392523491,1761606647968,-500.0,0.00016438,2]
[392523492,1761606647979,-255.25666078,0.00016438,2]
[392523493,1761606647988,-178.83115339,0.00016438,2]
[392523494,1761606647998,-172.99020297,0.00016495,2]
[392523495,1761606648007,-3059.6719712,0.00016495,2]
[392523496,1761606648016,-195.0,0.00016495,2]
[392523497,1761606648026,-362.57667576,0.00016495,2]
[392523498,1761606648035,-1068.61317408,0.00016495,2]
[392523499,1761606648044,-195.0,0.00016495,2]
[392523500,1761606648054,-300.0,0.00016495,2]
[392523501,1761606648064,-250.0,0.00016499,2]
[392523502,1761606648074,-84.56941028,0.000166,2]
[392523503,1761606648084,-500.0,0.00016795,2]
[392523504,1761606648095,-500.0,0.00016838,2]
[392523505,1761606648104,-1000.0,0.00016838,2]
[392523506,1761606648114,-500.0,0.00016849,2]
[392523507,1761606648123,-918.26,0.00016901,2]
[392523508,1761606648132,-1040.6426151,0.00016946,2]
[392523509,1761606648142,-3384.5455993,0.00016976,2]
[392523510,1761606648153,-250.0,0.00017,2]
[392523511,1761606648163,-232.1987533,0.0001738,2]
[392523512,1761606648172,-500.0,0.00017386,2]
[392523513,1761606648182,-918.26,0.00017413,2]
[392523514,1761606648191,-755.1942016,0.00017417,2]
[392523515,1761606648202,-169.38,0.00017472,2]
[392523516,1761606648212,-2753.15466861,0.000175,2]
[392523517,1761606648223,-500.0,0.00017589,2]
[392523518,1761606648233,-200.0,0.00017592,2]
[392523519,1761606648243,-250.0,0.00017739,2]
[392523520,1761606648253,-1600.0,0.00017887,2]
[392523521,1761606648264,-918.26,0.00017925,2]
[392523522,1761606648273,-30687.57067522,0.00018,2]
[392523523,1761606648282,-664.33096027,0.00018,2]
[392523524,1761606648291,-166.66,0.00018026,2]
[392523525,1761606648300,-292.3094167,0.00018054,2]
[392523526,1761606648309,-335.97867934,0.00018062,2]
[392523527,1761606648318,-335.97867934,0.00018064,2]
[392523528,1761606648327,-483.72,0.00018137,2]
[392523529,1761606648337,-150.0,0.00018206,2]
[392523530,1761606648346,-200.0,0.00018257,2]
[392523531,1761606648356,-1862.11,0.00018409,2]
[392523532,1761606648366,-918.26,0.00018437,2]
[392523533,1761606648376,-418.38588475,0.00018589,2]
[392523534,1761606648385,-166.66,0.00018621,2]
[392523535,1761606648394,-1852.42,0.00018647,2]
[392523536,1761606648403,-2786.73,0.00018659,2]
[392523537,1761606648413,-500.0,0.00018685,2]
[392523538,1761606648423,-571.55,0.000188,2]
[392523539,1761606648432,-174.93,0.000188,2]
[392523540,1761606648442,-174.93,0.000188,2]
[392523541,1761606648451,-174.93,0.000188,2]
[392523542,1761606648461,-174.93,0.000188,2]
[392523543,1761606648470,-174.93,0.000188,2]
[392523544,1761606648480,-174.93,0.000188,2]
[392523545,1761606648489,-174.93,0.000188,2]
[392523546,1761606648498,-174.93,0.000188,2]
[392523547,1761606648507,-174.93,0.000188,2]
[392523548,1761606648516,-174.93,0.000188,2]
[392523549,1761606648526,-174.93,0.000188,2]
[392523550,1761606648535,-174.93,0.000188,2]
[392523551,1761606648545,-174.93,0.000188,2]
[392523552,1761606648555,-174.93,0.000188,2]
[392523553,1761606648564,-174.93,0.000188,2]
[392523554,1761606648574,-174.93,0.000188,2]
[392523555,1761606648584,-174.93,0.000188,2]
[392523556,1761606648594,-174.93,0.000188,2]
[392523557,1761606648604,-174.93,0.000188,2]
[392523558,1761606648614,-174.93,0.000188,2]
[392523559,1761606648623,-174.93,0.000188,2]
[392523560,1761606648633,-174.93,0.000188,2]
[392523561,1761606648642,-174.93,0.000188,2]
[392523562,1761606648651,-174.93,0.000188,2]
[392523563,1761606648660,-174.93,0.000188,2]
[392523564,1761606648672,-174.93,0.000188,2]
[392523565,1761606648682,-174.93,0.000188,2]
[392523566,1761606648696,-174.93,0.000188,2]
[392523567,1761606648770,-174.93,0.000188,2]
[392523568,1761606648780,-174.93,0.000188,2]
[392523569,1761606648790,-174.93,0.000188,2]
[392523570,1761606648800,-174.93,0.000188,2]
[392523571,1761606648810,-174.93,0.000188,2]
[392523572,1761606648820,-174.93,0.000188,2]
[392523573,1761606648830,-174.93,0.000188,2]
[392523574,1761606648840,-174.93,0.000188,2]
[392523575,1761606648850,-174.93,0.000188,2]
[392523576,1761606648861,-174.93,0.000188,2]
[392523577,1761606648870,-174.93,0.000188,2]
[392523578,1761606648881,-174.93,0.000188,2]
[392523579,1761606648894,-174.93,0.000188,2]
[392523580,1761606648905,-174.93,0.000188,2]
[392523581,1761606648915,-174.93,0.000188,2]
[392523582,1761606648924,-174.93,0.000188,2]
[392523583,1761606648933,-174.93,0.000188,2]
[392523584,1761606648943,-174.93,0.000188,2]
[392523585,1761606648952,-174.93,0.000188,2]
[392523586,1761606648961,-174.93,0.000188,2]
[392523587,1761606648979,-174.93,0.000188,2]
[392523588,1761606648989,-174.93,0.000188,2]
[392523589,1761606648999,-174.93,0.000188,2]
[392523590,1761606649009,-174.93,0.000188,2]
[392523591,1761606649018,-174.93,0.000188,2]
[392523592,1761606649027,-483.72,0.00018817,2]
[392523593,1761606649037,-918.26,0.00018949,2]
[392523594,1761606649047,-224.04,0.00018952,2]
[392523595,1761606649057,-2403.25168824,0.00019,2]
[392523596,1761606649066,-9507.10497434,0.00019,2]
[392523597,1761606649076,-300.0,0.00019,2]
[392523598,1761606649086,-571.55,0.00019074,2]
[392523599,1761606649095,-174.93,0.00019147,2]
[392523600,1761606649105,-10757.19,0.00019157,2]
[392523601,1761606649114,-166.66,0.00019216,2]
[392523602,1761606649123,-571.55,0.00019348,2]
[392523603,1761606649133,-918.26,0.00019461,2]
[392523604,1761606649143,-483.72,0.00019497,2]
[392523605,1761606649152,-560.37325145,0.00019603,2]
[392523606,1761606649161,-571.55,0.00019622,2]
[392523607,1761606649171,-1402.58579918,0.0001963,2]
[392523608,1761606649181,-169.38,0.00019656,2]
[392523609,1761606649190,-166.66,0.00019811,2]
[392523610,1761606649199,-571.59,0.00019896,2]
[392523611,1761606649209,-152.61,0.0002,2]
[392523612,1761606649218,-1122.21750663,0.0002,2]
[392523613,1761606649227,-1600.0,0.00020122,2]
[392523614,1761606649237,-483.72,0.00020177,2]
[392523615,1761606649246,-369.22,0.00020187,2]
[392523616,1761606649256,-166.66,0.00020406,2]
[392523617,1761606649265,-483.72,0.00020857,2]
[392523618,1761606649274,-2731.58161344,0.00021,2]
[392523619,1761606649283,-828.93433233,0.00021,2]
[392523620,1761606649293,-1180.41871132,0.00021,2]
[392523621,1761606649302,-194.84477121,0.00021,2]
[392523622,1761606649312,-350.0,0.00021,2]
[392523623,1761606649321,-166.66,0.00021001,2]
[392523624,1761606649330,-335.97867934,0.00021224,2]
[392523625,1761606649339,-335.97867934,0.00021229,2]
[392523626,1761606649348,-219.68352545,0.000215,2]
[392523627,1761606649357,-169.38,0.0002184,2]
[392523628,1761606649368,-818.0,0.00021862,2]
[392523629,1761606649378,-2180.95,0.00021918,2]
[392523630,1761606649387,-560.37325145,0.00021955,2]
[392523631,1761606649396,-1402.58579918,0.00021995,2]
[392523632,1761606649406,-4616.59,0.00022,7]
[392523633,1761606649416,-418.38588475,0.00022278,2]
[392523634,1761606649427,-1600.0,0.00022358,2]
[392523635,1761606649436,-500.0,0.00022493,2]
[392523636,1761606649446,-2000.0,0.000227,2]
[392523637,1761606649456,-174.93,0.0002299,2]
[392523638,1761606649466,-151.0,0.00022997,7]
[392523639,1761606649476,-35203.57868134,0.00023,2]
[392523640,1761606649486,-400.0,0.00023,2]
[392523641,1761606649496,-500.0,0.00023068,2]
[392523642,1761606649506,-486.87,0.00023836,2]
[392523643,1761606649516,-169.38,0.00024024,2]
[392523644,1761606649526,-560.37325145,0.00024306,2]
[392523645,1761606649537,-1402.58579918,0.0002436,2]
[392523646,1761606649547,-335.97867934,0.00024386,2]
[392523647,1761606649557,-335.97867934,0.00024393,2]
[392523648,1761606649568,-1600.0,0.00024594,2]
[392523649,1761606649578,-151.87794743,0.0002465,2]
[392523650,1761606649590,-501.46068794,0.00024773,2]
[392523651,1761606649600,-20673.46,0.00024792,2]
[392523652,1761606649611,-174.93,0.00024863,2]
[392523653,1761606649622,-527.41683581,0.00024873,2]
[392523654,1761606649632,-500.0,0.00024873,2]
[392523655,1761606649642,-500.0,0.00024873,2]
[392523656,1761606649652,-500.0,0.00024873,2]